[Event "Grandiscacchi GM Festival 2022"]
[Site "Montebelluna"]
[Date "2022.05.19"]
[Round "7.2"]
[White "Safarli, Eltaj"]
[Black "Loiseau, Quentin"]
[Result "1-0"]
[ECO "C67"]
[WhiteElo "2600"]
[BlackElo "2445"]
[Annotator "TA"]
[PlyCount "155"]
[EventDate "2022.05.17"]
[EventType "swiss"]
[EventCountry "ITA"]
[SourceTitle "playchess.com"]
[Source "ChessBase"]
[SourceQuality "1"]
[TimeControl "40/3600+30:1800+30"]

{[%evp 18,155,23,18,26,0,35,41,32,31,33,39,39,27,36,29,25,25,42,28,27,13,15,22,20,0,37,0,0,0,0,0,0,0,4,0,0,0,0,-12,39,24,40,30,28,25,131,28,28,20,27,22,27,31,39,0,156,152,434,434,434,432,524,514,476,497,425,406,1212,1252,227,1129,633,566,1165,1050,1359,1085,947,5663,1579,397,397,275,653,634,596,584,536,421,452,73,1120,1001,29967,12359,29972,29973,29973,5775,7009,12189,6202,1416,29975,29977,29979,1566,29978,29979,29980,29969,29980,29978,29978,29979,29979,29980,29979,29980,29980,29980,29980,29966,29983,29984,29984,29985,29988,29989,29989,29989,29989,29989,29989,29989,29989,29990,29990,29991]} 1. e4 {[%emt 0:00:13]} e5 {[%emt 0:02:04]} 2. Nf3 {[%emt 0:00:05]} Nc6 {[%emt 0:00:03]} 3. Bb5 {[%emt 0:00:05]} Nf6 {[%emt 0:00:04]} 4. O-O {[%emt 0:03:34][%cal Bh1f1,Bf1e1,Be1e5][%mdl 32]} Nxe4 {[%emt 0:00:11]} 5. Re1 {[%emt 0:00:39]} Nd6 {[%emt 0:00:16]} 6. Nxe5 {[%emt 0:00:13]} Be7 {[%emt 0:00:06]} 7. Bf1 {[%emt 0:00:27]} Nxe5 {[%emt 0:00:06]} 8. Rxe5 {[%emt 0:00:04]} O-O {[%emt 0:00:07]} 9. d4 {[%emt 0:00:23]} Bf6 {[%emt 0:00:56]} 10. Re1 {[%emt 0:00:23]} Nf5 {[%emt 0:01:32] C67: Ruy Lopez: Berlin Defence: 4 0-0 Nxe4.} 11. d5 {[%emt 0:00:56]} d6 {[%emt 0:03:21]} 12. Nd2 {[%emt 0:00:10]} Bg5 {[%emt 0:06:34] White is slightly better.} 13. Ne4 {[%emt 0:01:44]} Bxc1 {[%emt 0:00:09]} 14. Rxc1 {[%emt 0:00:03]} Bd7 {[%emt 0:06:05]} 15. g3 {[%emt 0:01:47]} Re8 {[%emt 0:08:44]} 16. Qd2 {[%emt 0:03:16]} Ne7 {[%emt 0:02:59]} 17. c4 {[%emt 0:02:17] [#]} Bf5 $146 {[%emt 0:02:45]} ({Predecessor:} 17... Ng6 18. f4 b6 19. Re3 Nf8 20. Rce1 h6 21. Bd3 Nh7 22. Qc3 Nf6 23. Nxf6+ Qxf6 24. Qxf6 gxf6 25. Rxe8+ Rxe8 26. Rxe8+ Bxe8 {½-½ (59) Kasimdzhanov,R (2684)-Dominguez Perez,L (2725) London 2012}) 18. Bg2 {[%emt 0:04:35]} Ng6 {[%emt 0:04:35]} 19. f4 {[%emt 0:09:12]} Bxe4 {[%emt 0:01:44]} 20. Bxe4 {[%emt 0:02:06]} Qf6 {[%emt 0:01:08]} 21. Bg2 {[%emt 0:07:59]} Kf8 {[%emt 0:03:15]} 22. b4 {[%emt 0:07:06]} Rxe1+ {[%emt 0:00:37]} 23. Rxe1 {[%emt 0:00:04]} b6 {[%emt 0:04:04]} 24. c5 {[%emt 0:06:35]} bxc5 {[%emt 0:00:27]} 25. bxc5 {[%emt 0:00:04]} Ne7 {[%emt 0:12:10]} 26. Qa5 {[%emt 0:05:02]} Rc8 {[%emt 0:05:09]} 27. Qxa7 {[%emt 0:03:44]} Qd4+ {[%emt 0:00:24]} 28. Kh1 {[%emt 0:00:04]} Nxd5 {[%emt 0:00:56]} ({Better is} 28... g6 $11) 29. Qb7 $14 {[%emt 0:01:09][%csl LRc8,LRd5][%cal Rb7c8]} Ne7 {[%emt 0:01:57]} 30. cxd6 {[%emt 0:00:00]} Qxd6 {[%emt 0:00:00]} 31. a4 {[%emt 0:00:00] And now a5 would win.} Qa3 {[%emt 0:00:00]} (31... Qd2 $11 {keeps the balance.} 32. Qe4 Nd5) 32. Qe4 {[%emt 0:00:00] White is much more active.} (32. Bh3 $1 $16 {[%cal Rh3c8]} Rd8 33. Qxc7) 32... c6 $11 {[%emt 0:00:00]} 33. Qe5 $36 {[%emt 0:00:00][%mdl 2048] Black is under pressure.} Ra8 {[%emt 0:00:00] Against a5} 34. Ra1 {[%emt 0:00:00]} Qb4 {[%emt 0:00:00]} 35. a5 {[%emt 0:00:00]} f6 {[%emt 0:00:00]} 36. Qh5 {[%emt 0:00:00]} (36. Qe4 {keeps more tension.} Rxa5 37. Qxb4 Rxa1+ 38. Bf1) 36... f5 $2 {[%emt 0:00:00] White stays focused until the end.} (36... Qd4 $1 $11 37. Re1 Qd2) 37. Qd1 $1 $16 {[%emt 0:01:20]} ({Inferior is} 37. Qxh7 Rxa5 38. Rf1 Qc3 $11) 37... Nd5 $2 {[%emt 0:00:00]} (37... Ra7 $16 38. a6 Qb5) 38. Bxd5 $18 {[%emt 0:01:13]} cxd5 {[%emt 0:00:00]} 39. Qxd5 {[%emt 0:00:04][%mdl 4096] Endgame KQR-KQR} Re8 {[%emt 0:00:00]} 40. Qxf5+ {[%emt 0:00:06]} Kg8 {[%emt 0:00:00]} 41. Qd5+ {[%emt 0:31:11]} Kf8 {[%emt 0:30:39]} 42. Rd1 {[%emt 0:03:48]} Re1+ {[%emt 0:00:18]} (42... Qc3 $142 43. Kg2 Qc2+ 44. Kh3 Qc8+ 45. f5 Re7) 43. Rxe1 {[%emt 0:00:05]} Qxe1+ {[%emt 0:00:21] KQ-KQ} 44. Kg2 {[%emt 0:00:03]} Qe2+ {[%emt 0:00:39]} 45. Kh3 {[%emt 0:00:05]} h6 {[%emt 0:04:27]} 46. Qe5 {[%emt 0:02:33]} Qf3 {[%emt 0:00:48]} 47. Kh4 {[%emt 0:01:14]} Qf2 {[%emt 0:01:07]} 48. h3 {[%emt 0:00:21]} (48. Qd6+ $142 Kg8 49. h3) 48... Qa2 {[%emt 0:01:25]} 49. Qb8+ $2 {[%emt 0:01:58]} (49. Qd6+ Kf7 50. Qc7+ Kg8 51. Qb6) 49... Kf7 {[%emt 0:00:02]} 50. Qb7+ {[%emt 0:00:06]} Kg6 $2 {[%emt 0:00:11]} (50... Kg8 51. Qb6 (51. a6 Qe6 $16) 51... Qe2 52. Qd8+ Kh7) 51. a6 {[%emt 0:01:36]} Qe6 {[%emt 0:00:11]} 52. Qb1+ $1 {[%emt 0:01:48]} (52. a7 Qf6+ 53. Kg4 Qf5+ 54. Kf3 Qd3+ 55. Kg2 Qe2+ 56. Kh1 Qe1+ 57. Kh2 Qf2+ 58. Kh1 Qf1+ 59. Kh2 Qf2+ 60. Qg2 (60. Kh1 Qe1+ 61. Kh2 Qf2+ $16) 60... Qxa7 $16) 52... Kf7 {[%emt 0:00:13]} 53. Qd3 {[%emt 0:03:17] Strongly threatening f5.} ({Weaker is} 53. Qb7+ Kg8 54. Qb8+ (54. a7 Qf6+ 55. Kg4 Qg6+ 56. Kf3 Qd3+ 57. Kg2 Qe2+ 58. Kh1 Qe1+ 59. Kh2 Qf2+ 60. Qg2 Qxa7 $16) 54... Kh7 $16) 53... g6 {[%emt 0:01:02] [#] Against f5} 54. Qb5 $2 {[%emt 0:01:40]} (54. f5 $1 $18 {[%cal Rf5e6] and the rest is easy.} gxf5 55. g4 Qf6+ 56. Kg3) 54... Qf6+ {[%emt 0:02:44][%mdl 8192]} (54... Kg8 $16 55. Qb8+ Kh7) 55. Kg4 {[%emt 0:00:01]} Qe6+ {[%emt 0:00:10]} 56. Kf3 {[%emt 0:00:05] Threatening mate with a7.} Qxh3 {[%emt 0:00:08]} 57. Qd5+ {[%emt 0:00:43]} Kf6 {[%emt 0:00:13]} 58. Qd4+ {[%emt 0:00:45]} (58. Kf2 $142 Qh2+ 59. Qg2 Qh5 60. Qc6+ Kf7 61. a7 Qa5 62. Qd7+ Kf6 63. Kf3 Qa3+ 64. Ke4) 58... Kf7 {[%emt 0:00:57]} 59. a7 {[%emt 0:00:54] Qd5+ would kill now.} Qh1+ {[%emt 0:00:34]} 60. Ke2 {[%emt 0:00:09]} (60. Ke3 $142 Qc6 61. Kd3) 60... Qg2+ {[%emt 0:00:20]} 61. Kd3 {[%emt 0:00:09]} Qf3+ {[%emt 0:00:30]} 62. Kd2 {[%emt 0:00:41]} (62. Kc4 $142 Qc6+ 63. Qc5 Qe4+ 64. Kb5 Qb7+ 65. Qb6 Qd5+ 66. Ka6 Qd3+ 67. Kb7 Qe4+ 68. Qc6 Qb4+ 69. Kc7 Qe7+ 70. Qd7) 62... Qg2+ {[%emt 0:00:05]} 63. Kc3 {[%emt 0:00:21] White mates.} Qb7 {[%emt 0:01:02]} 64. Qc5 {[%emt 0:00:40]} Kg7 {[%emt 0:00:53]} 65. Qe5+ {[%emt 0:01:00]} Kh7 {[%emt 0:00:19]} 66. Qb8 {[%emt 0:00:14]} Qf3+ {[%emt 0:00:35]} 67. Kb4 {[%emt 0:00:03]} Qe4+ {[%emt 0:00:11] [#]} 68. Ka5 $1 {[%emt 0:00:05]} Qe1+ {[%emt 0:01:14]} 69. Qb4 {[%emt 0:01:01]} Qa1+ {[%emt 0:00:15]} 70. Qa4 {[%emt 0:00:46]} Qc3+ {[%emt 0:00:19]} 71. Kb5 {[%emt 0:00:38]} Qd3+ {[%emt 0:00:11]} 72. Qc4 {[%emt 0:00:12]} Qb1+ {[%emt 0:01:13]} 73. Kc6 {[%emt 0:00:16]} Qh1+ {[%emt 0:00:14]} 74. Qd5 {[%emt 0:00:19]} Qa1 {[%emt 0:00:47]} 75. Qd7+ {[%emt 0:00:29]} Kg8 {[%emt 0:00:05]} 76. Qd8+ {[%emt 0:00:07]} Kf7 {[%emt 0:00:04]} 77. a8=Q {[%emt 0:00:06]} Qc3+ {[%emt 0:00:10]} 78. Kb7 {[%emt 0:00:08] Weighted Error Value: White=0.37/Black=0.42} 1-0

[Event "Grandiscacchi GM Festival 2022"]
[Site "Montebelluna"]
[Date "2022.05.19"]
[Round "7.3"]
[White "Rozen, Eytan"]
[Black "Siddharth, Jagadeesh"]
[Result "1/2-1/2"]
[ECO "C42"]
[WhiteElo "2425"]
[BlackElo "2393"]
[Annotator "TA"]
[PlyCount "97"]
[EventDate "2022.05.17"]
[EventType "swiss"]
[EventCountry "ITA"]
[SourceTitle "playchess.com"]
[Source "ChessBase"]
[SourceQuality "1"]
[TimeControl "40/3600+30:1800+30"]

{[%evp 9,97,14,14,8,0,4,5,12,20,2,2,-2,-1,-10,7,0,0,-5,0,-8,-4,-26,10,10,14,12,13,14,6,6,6,0,0,1,8,6,12,0,0,0,0,0,0,0,0,0,0,0,0,0,0,0,0,0,0,0,2,0,0,0,0,0,14,7,8,8,8,0,0,0,9,0,0,0,0,0,3,0,3,0,0,0,0,0,0,0,0,0,0,0]} 1. e4 {[%emt 0:00:01]} e5 {[%emt 0:02:58]} 2. Nf3 {[%emt 0:00:02]} Nf6 {[%emt 0:00:17]} 3. Nxe5 {[%emt 0:00:04]} d6 {[%emt 0:00:12]} 4. Nf3 {[%emt 0:00:02]} Nxe4 {[%emt 0:00:19]} 5. c4 {[%emt 0:00:02]} Nc6 {[%emt 0:00:24]} 6. d3 {[%emt 0:00:10][%cal Bd2d3,Bd3d4,Bd4d5][%mdl 32] C42: Petroff Defence: 3 Nxe5 and unusual White 3rd moves.} Nf6 {[%emt 0:00:17]} 7. d4 $1 {[%emt 0:00:02]} Be7 {[%emt 0:00:25]} 8. Nc3 {[%emt 0:00:36]} O-O {[%emt 0:01:00]} 9. d5 {[%emt 0:00:41]} Ne5 {[%emt 0:00:07]} 10. Be2 {[%emt 0:01:03]} Nxf3+ {[%emt 0:01:00]} 11. Bxf3 {[%emt 0:00:03]} Bf5 {[%emt 0:00:25]} 12. O-O {[%emt 0:00:43]} Nd7 {[%emt 0:00:29] [#]} 13. Bg4 $146 {[%emt 0:06:07]} ({Predecessor:} 13. Be4 Bxe4 14. Nxe4 Nc5 15. Nxc5 dxc5 16. Bf4 Bd6 17. Qd2 Bxf4 18. Qxf4 Qd6 19. Qxd6 cxd6 {½-½ (29) Smirin,I (2616)-Nguyen,T (2594) Terme Catez 2021}) 13... Bxg4 {[%emt 0:05:21]} 14. Qxg4 {[%emt 0:00:02]} Bf6 {[%emt 0:00:54]} 15. Ne4 {[%emt 0:06:14]} Re8 {[%emt 0:04:26]} (15... Be5 $5 {[%cal Rf7f5]} 16. Ng5 h6 $11) 16. Nxf6+ {[%emt 0:04:07] The position is equal.} Nxf6 {[%emt 0:00:04]} 17. Qd4 {[%emt 0:03:06]} Nd7 {[%emt 0:04:11]} 18. b3 {[%emt 0:02:50]} Qf6 {[%emt 0:02:36]} 19. Qxf6 {[%emt 0:08:58]} Nxf6 {[%emt 0:00:08]} 20. Be3 {[%emt 0:01:56]} a5 {[%emt 0:02:51][%cal Ba7a5,Ba5a4][%mdl 32]} 21. Bd4 {[%emt 0:06:19]} a4 {[%emt 0:03:00]} 22. f3 {[%emt 0:00:30]} Nd7 {[%emt 0:02:26]} 23. Kf2 {[%emt 0:02:44]} Nc5 {[%emt 0:02:42]} 24. Rfd1 {[%emt 0:02:47] Inhibits Nd3+.} axb3 {[%emt 0:04:38]} 25. Bxc5 {[%emt 0:00:14][%mdl 64] [#] Remove Defender} dxc5 {[%emt 0:00:06]} (25... b2 $5 26. Rab1 dxc5 $11) 26. axb3 $11 {[%emt 0:00:09][%mdl 4096] Endgame KRR-KRR} Kf8 {[%emt 0:01:05]} 27. Re1 {[%emt 0:02:05]} Red8 {[%emt 0:00:54]} 28. g4 {[%emt 0:05:00]} Rxa1 {[%emt 0:00:47]} 29. Rxa1 {[%emt 0:00:01] KR-KR} Ke7 {[%emt 0:00:08]} 30. h4 {[%emt 0:00:00]} Kd6 {[%emt 0:00:00]} 31. h5 {[%emt 0:00:00]} c6 {[%emt 0:00:00]} 32. dxc6 {[%emt 0:00:00]} Kxc6 {[%emt 0:00:00]} 33. Ke3 {[%emt 0:00:00]} h6 {[%emt 0:00:00]} 34. f4 {[%emt 0:00:00]} Re8+ {[%emt 0:00:00]} 35. Kf3 {[%emt 0:00:00]} f6 {[%emt 0:00:00] Prevents g5.} 36. Rd1 {[%emt 0:00:00]} Re7 {[%emt 0:00:00]} 37. Rd8 {[%emt 0:02:41]} Kc7 {[%emt 0:01:10]} 38. Rd5 {[%emt 0:01:02]} Kc6 {[%emt 0:01:14]} 39. Rd8 {[%emt 0:00:40]} Kc7 {[%emt 0:00:09]} 40. Rd5 {[%emt 0:00:07]} Kc6 {[%emt 0:00:31]} 41. g5 {[%emt 0:34:42]} Rd7 {[%emt 0:30:50]} 42. Rf5 {[%emt 0:00:13]} Rd6 {[%emt 0:03:55]} 43. Kg4 {[%emt 0:00:58]} b6 {[%emt 0:02:26]} 44. Rxf6 {[%emt 0:02:27]} gxf6 {[%emt 0:01:47]} 45. gxh6 {[%emt 0:00:59] [#] And now Kf5 would win.} Rd8 {[%emt 0:06:04] ( -> ...Rh8)} 46. Kf5 {[%emt 0:00:45]} Rh8 {[%emt 0:00:36]} 47. Kg6 {[%emt 0:00:29] aiming for Kg7.} Kd6 {[%emt 0:00:44]} 48. Kg7 {[%emt 0:02:11]} Ke7 {[%emt 0:00:34]} 49. Kxh8 {[%emt 0:07:03] Not much happened in this game.  Weighted Error Value: White=0.02 (flawless) /Black=0.02 (flawless)} 1/2-1/2

[Event "Grandiscacchi GM Festival 2022"]
[Site "Montebelluna"]
[Date "2022.05.19"]
[Round "7.4"]
[White "Martinovici, Ilia"]
[Black "Kalogridis, Antonios"]
[Result "1-0"]
[ECO "D80"]
[WhiteElo "2408"]
[BlackElo "2306"]
[Annotator "TA"]
[PlyCount "85"]
[EventDate "2022.05.17"]
[EventType "swiss"]
[EventCountry "ITA"]
[SourceTitle "playchess.com"]
[Source "ChessBase"]
[SourceQuality "1"]
[TimeControl "40/3600+30:1800+30"]

{[%evp 9,85,9,9,-8,0,-10,14,0,-16,-12,-14,-20,-20,-25,-12,-116,-84,-87,-90,-80,-85,-78,-24,-27,-23,-6,-8,-35,28,16,22,20,22,31,29,26,234,238,237,237,233,241,233,231,230,231,308,93,78,103,227,220,289,265,341,329,739,746,670,681,787,796,702,470,994,981,779,859,1128,1114,1437,1339,1642,1368,11526,12841,5409,5369]} 1. d4 {[%emt 0:00:03]} Nf6 {[%emt 0:00:03]} 2. c4 {[%emt 0:00:04]} g6 {[%emt 0:00:02]} 3. Nc3 {[%emt 0:00:07][%cal Bb1c3,Bc3a4,Ba4c5][%mdl 32]} d5 {[%emt 0:00:03]} 4. h4 {[%emt 0:00:03]} c5 {[%emt 0:00:06]} 5. cxd5 {[%emt 0:00:05]} Nxd5 {[%emt 0:00:22]} 6. Na4 {[%emt 0:00:08] [#] D80: Grünfeld: Unusual White 4th moves and 4 Bg5.} Nf6 $146 {[%emt 0:00:35]} ({Predecessor:} 6... Nc6 7. e4 Nb6 8. d5 Ne5 9. h5 Nxa4 10. Qxa4+ Bd7 11. Qa3 Qb6 12. Qc3 Qb4 13. Qxb4 cxb4 {1-0 (37) Carlsen,M (2847)-Vachier Lagrave,M (2751) chess24.com INT 2021}) 7. Nxc5 {[%emt 0:00:46]} e5 {[%emt 0:00:05]} 8. e3 {[%emt 0:00:25][%cal Od4e5] The position is equal.} (8. dxe5 Qxd1+ 9. Kxd1 Bxc5 10. exf6 Bxf2 $15) 8... Nc6 {[%emt 0:03:34]} 9. Nb3 {[%emt 0:01:14]} exd4 {[%emt 0:07:54]} 10. exd4 {[%emt 0:03:21]} Bb4+ {[%emt 0:01:44]} 11. Bd2 {[%emt 0:00:06]} O-O {[%emt 0:08:32]} 12. Bb5 {[%emt 0:08:48]} (12. Be2 $1 $11) 12... Bxd2+ {[%emt 0:11:01]} (12... Bg4 $6 13. f3 Be6 14. Ne2 $11) 13. Qxd2 {[%emt 0:51:50]} Ne4 $1 {[%emt 0:00:15]} 14. Qd1 {[%emt 0:00:00]} Re8 {[%emt 0:06:20]} (14... Qf6 15. Nf3 $11 (15. Qf3 Qe7 $15)) 15. Ne2 {[%emt 0:00:00] Against Nc3} Qe7 {[%emt 0:02:58]} ({Better is} 15... Bg4 $17 {Hoping for ...Nd6.} 16. O-O (16. Bxc6 $2 Nxf2 17. Kxf2 Rxe2+ 18. Qxe2 Bxe2 $19) 16... Nd6) 16. O-O $11 {[%emt 0:00:00]} Qxh4 {[%emt 0:01:52]} 17. Rc1 {[%emt 0:00:00]} Nf6 {[%emt 0:04:58] ( -> ...Ng4)} 18. Qd2 {[%emt 0:00:00]} (18. Bxc6 Ng4 $1 19. Re1 Qh2+ 20. Kf1 Qh1+ 21. Ng1 Nh2#) 18... Qh5 {[%emt 0:04:01]} (18... a6 $15 19. g3 (19. Bxc6 Rxe2 20. Qxe2 Ng4 $17) 19... Qh5) 19. Rc5 {[%emt 0:00:00]} Ne4 {[%emt 0:01:26][%csl LRc5,LRd2]} 20. Qe3 {[%emt 0:00:00]} Bf5 {[%emt 0:00:08]} 21. Bxc6 {[%emt 0:00:00] Chess con chili.} bxc6 {[%emt 0:01:10]} 22. Re5 {[%emt 0:00:00] aiming for Ng3.} Qg4 {[%emt 0:05:56]} (22... Qh4 $11 {and Black is okay.}) 23. f3 $18 {[%emt 0:00:00]} Qg5 {[%emt 0:00:01]} 24. Qxe4 {[%emt 0:00:00]} Bxe4 {[%emt 0:00:03]} 25. Rxg5 {[%emt 0:00:00]} Bd3 {[%emt 0:00:07]} 26. Ng3 {[%emt 0:00:00]} Bxf1 {[%emt 0:00:16]} 27. Kxf1 {[%emt 0:00:00]} ({Much less strong is} 27. Nxf1 $6 f5 $16) 27... Re6 {[%emt 0:00:34]} 28. Re5 $2 {[%emt 0:00:00]} (28. Rc5 $18 {is more deadly.}) 28... Rxe5 $16 {[%emt 0:02:55]} 29. dxe5 {[%emt 0:00:00] Black must now prevent Na5.} Rd8 {[%emt 0:00:02] [#]} (29... Re8 $16) 30. Ke2 $1 $18 {[%emt 0:00:00]} g5 {[%emt 0:00:00]} 31. Ne4 {[%emt 0:00:00]} h6 {[%emt 0:00:00]} 32. Na5 {[%emt 0:00:00]} c5 {[%emt 0:00:00]} (32... Rb8 33. b3 (33. Nxc6 Rxb2+ 34. Nd2 Rxa2 $11) 33... Rb6) 33. Nc6 {[%emt 0:00:00] White is clearly winning.} Ra8 {[%emt 0:00:00]} 34. Nxc5 {[%emt 0:00:00]} Kg7 {[%emt 0:00:00]} 35. b4 {[%emt 0:00:00]} Rc8 {[%emt 0:00:00]} 36. Nd4 {[%emt 0:00:00]} a5 {[%emt 0:00:00]} (36... Kg6 $142 37. Kd3 h5) 37. Nf5+ {[%emt 0:00:00]} Kh7 {[%emt 0:00:00]} 38. Nd6 {[%emt 0:00:00]} Rc7 {[%emt 0:00:00]} 39. a3 {[%emt 0:00:00][%cal Ba2a3,Ba3b4,Bb4b5,Bb5b6][%mdl 32]} Re7 {[%emt 0:00:00]} 40. Nd3 {[%emt 0:00:00]} axb4 {[%emt 0:00:00]} 41. axb4 {[%emt 0:00:00]} f6 {[%emt 0:07:10]} 42. b5 {[%emt 0:00:00] White threatens b6 and mate.} fxe5 {[%emt 0:00:31]} 43. b6 {[%emt 0:00:06] Weighted Error Value: White=0.27 (precise) /Black=0.38} 1-0

[Event "Grandiscacchi GM Festival 2022"]
[Site "Montebelluna"]
[Date "2022.05.19"]
[Round "7.5"]
[White "Fishchuk, Vladyslav"]
[Black "Shahil Dey"]
[Result "0-1"]
[ECO "D79"]
[WhiteElo "2102"]
[BlackElo "2369"]
[Annotator "TA"]
[PlyCount "72"]
[EventDate "2022.05.17"]
[EventType "swiss"]
[EventCountry "ITA"]
[SourceTitle "playchess.com"]
[Source "ChessBase"]
[SourceQuality "1"]
[TimeControl "40/3600+30:1800+30"]

{[%evp 18,72,18,12,15,11,11,12,7,10,12,21,29,0,-1,-10,0,-13,-7,-184,-187,-199,-184,-197,-196,-210,-194,-261,-255,-227,-223,-234,-208,-352,-345,-352,-358,-370,-364,-371,-361,-367,-378,-458,-453,-520,-527,-786,-558,-1129,-1121,-1088,-1063,-1342,-1233,-1018,-970]} 1. d4 {[%emt 0:00:05]} Nf6 {[%emt 0:00:05]} 2. c4 {[%emt 0:00:31]} c6 {[%emt 0:00:05]} 3. Nf3 {[%emt 0:00:06]} d5 {[%emt 0:00:17]} 4. g3 {[%emt 0:00:07]} g6 {[%emt 0:00:05]} 5. Bg2 {[%emt 0:00:05]} Bg7 {[%emt 0:00:06]} 6. cxd5 {[%emt 0:00:03]} cxd5 {[%emt 0:00:08]} 7. O-O {[%emt 0:00:05]} O-O {[%emt 0:00:06]} 8. Ne5 {[%emt 0:00:05]} Nc6 {[%emt 0:01:46]} 9. Nc3 {[%emt 0:03:39]} Bf5 {[%emt 0:00:10]} 10. Bf4 {[%emt 0:01:00]} Rc8 {[%emt 0:06:04] D79: Fianchetto Grünfeld: Symmetrical Variation (6 0-0 c6 7 cxd5 cxd5).} 11. Nxc6 {[%emt 0:04:48]} bxc6 {[%emt 0:01:10]} 12. Be5 {[%emt 0:02:41] [#]} h5 $146 {[%emt 0:00:57] The position is equal.} ({Predecessor:} 12... Ne4 13. Nxe4 Bxe5 14. dxe5 dxe4 15. Qa4 Qd5 16. Qxa7 Qxe5 17. Qe3 Rfd8 18. b4 Rd4 {½-½ (56) Sethuraman,S (2324)-Lu,M (2343) New York 2022}) 13. h4 {[%emt 0:01:26]} Bh6 {[%emt 0:03:25]} 14. Bxf6 {[%emt 0:00:42]} exf6 {[%emt 0:00:06]} 15. Na4 {[%emt 0:01:40]} g5 {[%emt 0:02:39]} 16. e3 $1 {[%emt 0:02:24]} Bg6 {[%emt 0:01:47]} 17. f4 {[%emt 0:07:13]} gxh4 {[%emt 0:03:22]} 18. f5 $2 {[%emt 0:04:59] This move loses the game for White.} (18. gxh4 $11 {and White stays safe.} Re8 19. Qf3) 18... Bxe3+ $19 {[%emt 0:01:56]} 19. Kh1 {[%emt 0:00:03] And now Qd3 would win.} Bh7 {[%emt 0:06:01]} (19... hxg3 20. Qd3 Bf2 21. fxg6 $11) 20. Qxh5 {[%emt 0:00:19]} hxg3 {[%emt 0:02:31]} 21. Rf3 {[%emt 0:01:15] [#]} Bg5 $1 {[%emt 0:00:07]} 22. Rg1 {[%emt 0:03:21]} (22. Qg4 $142) 22... Kg7 {[%emt 0:01:48]} 23. Bh3 {[%emt 0:01:44]} Rh8 {[%emt 0:00:10]} ({And not} 23... Qa5 24. Rfxg3 Bxf5 25. Rxg5+ (25. Bxf5 Rh8 $15) 25... fxg5 26. Qxg5+ (26. Bxf5 Rh8 $15) 26... Bg6 27. Qe5+ Kh7 28. Rxg6 (28. Bxc8 Be4+ 29. Rg2 Qe1+ 30. Kh2 Qh4+ 31. Kg1 Bxg2 $17) 28... fxg6 29. Qe7+ Kh6 30. Bxc8 $11) 24. Qg4 {[%emt 0:00:59]} Qe7 {[%emt 0:04:25] Hoping for ...Qe2.} ({Worse is} 24... Qa5 25. Nc5) 25. Nc5 {[%emt 0:01:14] [#]} (25. Rfxg3 {was called for.} Rb8 26. a3) 25... Bxf5 $1 {[%emt 0:04:35][%mdl 512]} 26. Qxf5 {[%emt 0:01:14] [#]} Rxh3+ {[%emt 0:00:13][%mdl 512]} 27. Qxh3 {[%emt 0:00:09]} Rh8 {[%emt 0:00:19] Really sharp!} 28. Qxh8+ {[%emt 0:00:12]} Kxh8 {[%emt 0:00:04]} 29. Rfxg3 {[%emt 0:00:44]} Kg7 {[%emt 0:01:09][%cal Bh8g7,Bg7f8,Bf8e7][%mdl 32]} 30. b3 {[%emt 0:00:00]} Qe2 {[%emt 0:00:00] Black is clearly winning.} 31. a4 {[%emt 0:00:00]} Kf8 {[%emt 0:00:00]} 32. Rh3 {[%emt 0:00:00]} Qf2 {[%emt 0:00:00]} 33. Rd3 {[%emt 0:00:00]} Bf4 {[%emt 0:00:00][%csl Gf4][%cal Rf2h2]} 34. Rh3 {[%emt 0:00:00] Prevents Qh2+.} Qxd4 {[%emt 0:00:00]} 35. Rh8+ {[%emt 0:00:00]} Ke7 {[%emt 0:00:00]} 36. Re1+ {[%emt 0:00:00]} Be5 {[%emt 0:00:00] Weighted Error Value: White=0.66/Black=0.13 (very precise)} 0-1